[Event "Titled Tuesday Blitz March 07 Late 2023"]
[White "Martinez Reyes, Pedro Ramon"]
[Black "Mahdavi, Reza"]
[WhiteFideId "3901807"]
[BlackFideId "12595926"]
[WhiteElo "2340"]
[BlackElo "2208"]
[Result "1-0"]
[Round "06"]
[TimeControl "180+2"]
[Date "2023.03.07"]
[WhiteClock "0:00:09"]
[BlackClock "0:00:07"]

1. Nf3 {[%clk 0:03:00]}  Nf6 {[%clk 0:02:59]} 2. b3 {[%clk 0:03:01]}  g6 {[%clk 0:03:00]} 3. Bb2 {[%clk 0:03:01]}  Bg7 {[%clk 0:03:01]} 4. c4 {[%clk 0:03:01]}  O-O {[%clk 0:03:01]} 5. e3 {[%clk 0:03:02]}  d6 {[%clk 0:03:02]} 6. d4 {[%clk 0:03:01]}  Nc6 {[%clk 0:03:02]} 7. d5 {[%clk 0:02:59]}  Nb8 {[%clk 0:03:01]} 8. Be2 {[%clk 0:02:58]}  e5 {[%clk 0:03:02]} 9. dxe6 {[%clk 0:02:58]}  Bxe6 {[%clk 0:03:02]} 10. O-O {[%clk 0:02:55]}  Nc6 {[%clk 0:03:03]} 11. Nc3 {[%clk 0:02:49]}  h6 {[%clk 0:03:03]} 12. Qc2 {[%clk 0:02:49]}  Qd7 {[%clk 0:03:02]} 13. Rad1 {[%clk 0:02:48]}  Rae8 {[%clk 0:03:02]} 14. a3 {[%clk 0:02:42]}  Bf5 {[%clk 0:03:02]} 15. Bd3 {[%clk 0:02:41]}  Bxd3 {[%clk 0:03:02]} 16. Rxd3 {[%clk 0:02:39]}  Ng4 {[%clk 0:03:03]} 17. Rfd1 {[%clk 0:02:35]}  Qf5 {[%clk 0:03:00]} 18. Nd5 {[%clk 0:02:23]}  Qc8 {[%clk 0:02:55]} 19. Bxg7 {[%clk 0:02:20]}  Kxg7 {[%clk 0:02:55]} 20. Qb2+ {[%clk 0:02:19]}  f6 {[%clk 0:02:56]} 21. Nd4 {[%clk 0:02:15]}  Nge5 {[%clk 0:02:56]} 22. R3d2 {[%clk 0:02:14]}  Nxd4 {[%clk 0:02:56]} 23. Rxd4 {[%clk 0:02:12]}  h5 {[%clk 0:02:53]} 24. h3 {[%clk 0:02:12]}  Rf7 {[%clk 0:02:53]} 25. Qc3 {[%clk 0:02:10]}  a6 {[%clk 0:02:51]} 26. b4 {[%clk 0:02:08]}  g5 {[%clk 0:02:48]} 27. c5 {[%clk 0:02:02]}  Re6 {[%clk 0:02:47]} 28. cxd6 {[%clk 0:02:00]}  Rxd6 {[%clk 0:02:48]} 29. Ne7 {[%clk 0:01:53]}  Qe6 {[%clk 0:02:39]} 30. Rxd6 {[%clk 0:01:45]}  cxd6 {[%clk 0:02:40]} 31. Nd5 {[%clk 0:01:42]}  Qf5 {[%clk 0:02:38]} 32. f4 {[%clk 0:01:34]}  Ng6 {[%clk 0:02:36]} 33. e4 {[%clk 0:01:25]}  Qxe4 {[%clk 0:02:33]} 34. Nxf6 {[%clk 0:01:25]}  Qe6 {[%clk 0:02:24]} 35. Nxh5+ {[%clk 0:01:17]}  Kh6 {[%clk 0:02:21]} 36. g4 {[%clk 0:00:40]}  gxf4 {[%clk 0:02:12]} 37. Kf2 {[%clk 0:00:37]}  f3 {[%clk 0:02:09]} 38. Re1 {[%clk 0:00:36]}  Qa2+ {[%clk 0:02:09]} 39. Ke3 {[%clk 0:00:27]}  f2 {[%clk 0:01:42]} 40. Rf1 {[%clk 0:00:26]}  Re7+ {[%clk 0:01:42]} 41. Kf3 {[%clk 0:00:27]}  Qe2+ {[%clk 0:01:38]} 42. Kg2 {[%clk 0:00:22]}  Nh4+ {[%clk 0:01:29]} 43. Kh2 {[%clk 0:00:20]}  Re5 {[%clk 0:01:07]} 44. Ng3 {[%clk 0:00:18]}  Qa2 {[%clk 0:00:58]} 45. Qc1+ {[%clk 0:00:18]}  Kg6 {[%clk 0:00:51]} 46. Qc7 {[%clk 0:00:18]}  Qd5 {[%clk 0:00:48]} 47. Qc2+ {[%clk 0:00:15]}  Kg7 {[%clk 0:00:45]} 48. Qxf2 {[%clk 0:00:15]}  Qe6 {[%clk 0:00:18]} 49. Qf8+ {[%clk 0:00:15]}  Kg6 {[%clk 0:00:19]} 50. Qf2 {[%clk 0:00:11]}  Re3 {[%clk 0:00:18]} 51. Qc2+ {[%clk 0:00:07]}  Kh6 {[%clk 0:00:16]} 52. Nf5+ {[%clk 0:00:07]}  Nxf5 {[%clk 0:00:16]} 53. Qxf5 {[%clk 0:00:08]}  Qxf5 {[%clk 0:00:13]} 54. Rxf5 {[%clk 0:00:08]}  Rxa3 {[%clk 0:00:13]} 55. Rd5 {[%clk 0:00:08]}  b5 {[%clk 0:00:06]} 56. Rxd6+ {[%clk 0:00:08]}  Kg5 {[%clk 0:00:07]} 57. Rd5+ {[%clk 0:00:08]}  Kf4 {[%clk 0:00:07]} 58. Rf5+ {[%clk 0:00:08]}  Ke4 {[%clk 0:00:08]} 59. Rf2 {[%clk 0:00:08]}  Rb3 {[%clk 0:00:08]} 60. g5 {[%clk 0:00:09]}  Rd3 {[%clk 0:00:03]} 61. g6 {[%clk 0:00:09]}  Rd8 {[%clk 0:00:04]} 62. h4 {[%clk 0:00:09]}  Rg8 {[%clk 0:00:05]} 63. h5 {[%clk 0:00:09]}  Rh8 {[%clk 0:00:06]} 64. Kh3 {[%clk 0:00:04]}  Rxh5+ {[%clk 0:00:05]} 65. Kg4 {[%clk 0:00:05]}  Rh1 {[%clk 0:00:04]} 66. Kg5 {[%clk 0:00:05]}  Rg1+ {[%clk 0:00:04]} 67. Kf6 {[%clk 0:00:05]}  Kd4 {[%clk 0:00:04]} 68. Rc2 {[%clk 0:00:05]}  Kd3 {[%clk 0:00:03]} 69. Rc6 {[%clk 0:00:05]}  Rf1+ {[%clk 0:00:04]} 70. Ke7 {[%clk 0:00:05]}  Re1+ {[%clk 0:00:04]} 71. Kf7 {[%clk 0:00:06]}  Rf1+ {[%clk 0:00:04]} 72. Rf6 {[%clk 0:00:06]}  Rg1 {[%clk 0:00:03]} 73. g7 {[%clk 0:00:06]}  Kc3 {[%clk 0:00:02]} 74. Rg6 {[%clk 0:00:06]}  Rf1+ {[%clk 0:00:02]} 75. Ke7 {[%clk 0:00:07]}  Re1+ {[%clk 0:00:03]} 76. Kd7 {[%clk 0:00:07]}  Rd1+ {[%clk 0:00:04]} 77. Kc7 {[%clk 0:00:08]}  Kxb4 {[%clk 0:00:04]} 78. g8=Q {[%clk 0:00:08]}  Rc1+ {[%clk 0:00:05]} 79. Kb6 {[%clk 0:00:08]}  a5 {[%clk 0:00:04]} 80. Rg4+ {[%clk 0:00:08]}  Rc4 {[%clk 0:00:03]} 81. Rxc4+ {[%clk 0:00:07]}  bxc4 {[%clk 0:00:04]} 82. Qg4 {[%clk 0:00:07]}  a4 {[%clk 0:00:05]} 83. Qd1 {[%clk 0:00:07]}  a3 {[%clk 0:00:06]} 84. Qb1+ {[%clk 0:00:08]}  Kc3 {[%clk 0:00:07]} 85. Kc5 {[%clk 0:00:08]}  Kd2 {[%clk 0:00:06]} 86. Qa2+ {[%clk 0:00:08]}  Kd3 {[%clk 0:00:06]} 87. Qxc4+ {[%clk 0:00:08]}  Kd2 {[%clk 0:00:07]} 88. Qa2+ {[%clk 0:00:09]} 1-0


[Site "https://www.chess.com"]

[Event "Titled Tuesday Blitz March 07 Late 2023"]
[White "Marra, Eduardo da Costa"]
[Black "Harsh Suresh"]
[WhiteFideId "2106990"]
[BlackFideId "45018464"]
[WhiteElo "2252"]
[BlackElo "2227"]
[Result "0-1"]
[Round "06"]
[TimeControl "180+2"]
[Date "2023.03.07"]
[WhiteClock "0:00:56"]
[BlackClock "0:00:04"]

1. Nf3 {[%clk 0:03:00]}  Nf6 {[%clk 0:02:46]} 2. c4 {[%clk 0:03:00]}  g6 {[%clk 0:02:41]} 3. g3 {[%clk 0:03:01]}  Bg7 {[%clk 0:02:38]} 4. Nc3 {[%clk 0:03:00]}  O-O {[%clk 0:02:39]} 5. Bg2 {[%clk 0:03:01]}  c6 {[%clk 0:02:40]} 6. O-O {[%clk 0:03:00]}  d5 {[%clk 0:02:40]} 7. cxd5 {[%clk 0:03:01]}  cxd5 {[%clk 0:02:41]} 8. d4 {[%clk 0:03:02]}  Nc6 {[%clk 0:02:41]} 9. Ne5 {[%clk 0:03:02]}  Be6 {[%clk 0:02:38]} 10. Qa4 {[%clk 0:03:01]}  Nxe5 {[%clk 0:02:30]} 11. dxe5 {[%clk 0:03:02]}  Nd7 {[%clk 0:02:30]} 12. f4 {[%clk 0:03:01]}  Nb6 {[%clk 0:02:26]} 13. Qd1 {[%clk 0:02:52]}  Rc8 {[%clk 0:02:23]} 14. Nb5 {[%clk 0:02:46]}  Bd7 {[%clk 0:02:08]} 15. Nd4 {[%clk 0:02:46]}  e6 {[%clk 0:02:01]} 16. b3 {[%clk 0:02:45]}  Re8 {[%clk 0:01:50]} 17. Ba3 {[%clk 0:02:43]}  Bf8 {[%clk 0:01:50]} 18. Bxf8 {[%clk 0:02:44]}  Rxf8 {[%clk 0:01:51]} 19. Qd2 {[%clk 0:02:43]}  Qe7 {[%clk 0:01:50]} 20. Rac1 {[%clk 0:02:43]}  Qa3 {[%clk 0:01:48]} 21. e3 {[%clk 0:02:40]}  a5 {[%clk 0:01:45]} 22. h4 {[%clk 0:02:36]}  h5 {[%clk 0:01:45]} 23. g4 {[%clk 0:02:33]}  hxg4 {[%clk 0:01:42]} 24. h5 {[%clk 0:02:34]}  Rxc1 {[%clk 0:01:24]} 25. Rxc1 {[%clk 0:02:33]}  Rc8 {[%clk 0:01:24]} 26. Rxc8+ {[%clk 0:02:20]}  Bxc8 {[%clk 0:01:22]} 27. hxg6 {[%clk 0:02:19]}  fxg6 {[%clk 0:01:23]} 28. Qc2 {[%clk 0:02:12]}  Qe7 {[%clk 0:00:54]} 29. Qxg6+ {[%clk 0:02:09]}  Qg7 {[%clk 0:00:54]} 30. Qe8+ {[%clk 0:02:08]}  Qf8 {[%clk 0:00:54]} 31. Qh5 {[%clk 0:02:06]}  Qg7 {[%clk 0:00:52]} 32. Kf2 {[%clk 0:02:01]}  Bd7 {[%clk 0:00:49]} 33. Kg3 {[%clk 0:02:00]}  Nc8 {[%clk 0:00:45]} 34. Qxg4 {[%clk 0:01:57]}  b5 {[%clk 0:00:34]} 35. Bh3 {[%clk 0:01:57]}  Qxg4+ {[%clk 0:00:31]} 36. Bxg4 {[%clk 0:01:57]}  Kf7 {[%clk 0:00:32]} 37. a3 {[%clk 0:01:48]}  Nb6 {[%clk 0:00:23]} 38. Be2 {[%clk 0:01:45]}  a4 {[%clk 0:00:22]} 39. b4 {[%clk 0:01:38]}  Nc4 {[%clk 0:00:23]} 40. Bxc4 {[%clk 0:01:37]}  bxc4 {[%clk 0:00:20]} 41. b5 {[%clk 0:01:27]}  Ke7 {[%clk 0:00:19]} 42. Kg4 {[%clk 0:01:23]}  Kd8 {[%clk 0:00:14]} 43. Kg5 {[%clk 0:01:23]}  Kc7 {[%clk 0:00:10]} 44. Kf6 {[%clk 0:01:23]}  c3 {[%clk 0:00:09]} 45. f5 {[%clk 0:01:20]}  exf5 {[%clk 0:00:07]} 46. e6 {[%clk 0:01:21]}  Be8 {[%clk 0:00:06]} 47. Ke7 {[%clk 0:01:09]}  Bh5 {[%clk 0:00:05]} 48. Kf8 {[%clk 0:01:08]}  Kd6 {[%clk 0:00:02]} 49. e7 {[%clk 0:01:08]}  Kc5 {[%clk 0:00:02]} 50. e8=Q {[%clk 0:01:04]}  Bxe8 {[%clk 0:00:02]} 51. Kxe8 {[%clk 0:01:05]}  f4 {[%clk 0:00:03]} 52. Ne6+ {[%clk 0:01:05]}  Kxb5 {[%clk 0:00:02]} 53. Nxf4 {[%clk 0:01:06]}  Kc4 {[%clk 0:00:03]} 54. Kd7 {[%clk 0:01:03]}  c2 {[%clk 0:00:03]} 55. Ne2 {[%clk 0:01:02]}  Kd3 {[%clk 0:00:04]} 56. Nc1+ {[%clk 0:00:58]}  Kxe3 {[%clk 0:00:04]} 57. Kc6 {[%clk 0:00:57]}  d4 {[%clk 0:00:04]} 58. Kb5 {[%clk 0:00:56]}  d3 {[%clk 0:00:04]} 0-1


[Site "https://www.chess.com"]

[Event "Titled Tuesday Blitz March 07 Late 2023"]
[White "Janaszak, Dawid"]
[Black "Barp, Alberto"]
[WhiteFideId "1119206"]
[BlackFideId "872555"]
[WhiteElo "2220"]
[BlackElo "2313"]
[Result "1-0"]
[Round "06"]
[TimeControl "180+2"]
[Date "2023.03.07"]
[WhiteClock "0:00:02"]
[BlackClock "0:00:01"]

1. e4 {[%clk 0:03:00]}  e6 {[%clk 0:02:59]} 2. d4 {[%clk 0:02:59]}  d5 {[%clk 0:03:00]} 3. Bd3 {[%clk 0:03:00]}  c5 {[%clk 0:02:56]} 4. exd5 {[%clk 0:03:00]}  exd5 {[%clk 0:02:57]} 5. c3 {[%clk 0:02:59]}  Nf6 {[%clk 0:02:55]} 6. Nf3 {[%clk 0:02:59]}  Nc6 {[%clk 0:02:33]} 7. O-O {[%clk 0:02:58]}  c4 {[%clk 0:02:26]} 8. Bc2 {[%clk 0:02:57]}  Be7 {[%clk 0:02:25]} 9. Ne5 {[%clk 0:02:50]}  O-O {[%clk 0:02:23]} 10. f4 {[%clk 0:02:50]}  Bd6 {[%clk 0:02:13]} 11. Qf3 {[%clk 0:02:49]}  Ne7 {[%clk 0:02:12]} 12. b3 {[%clk 0:02:45]}  cxb3 {[%clk 0:02:01]} 13. axb3 {[%clk 0:02:46]}  Bf5 {[%clk 0:02:01]} 14. Bd3 {[%clk 0:02:22]}  Qc8 {[%clk 0:01:57]} 15. c4 {[%clk 0:02:15]}  Bxd3 {[%clk 0:01:56]} 16. Qxd3 {[%clk 0:02:16]}  dxc4 {[%clk 0:01:55]} 17. bxc4 {[%clk 0:02:16]}  Rd8 {[%clk 0:01:54]} 18. Bb2 {[%clk 0:02:05]}  Bc5 {[%clk 0:01:44]} 19. Nd2 {[%clk 0:01:53]}  Nf5 {[%clk 0:01:39]} 20. Nb3 {[%clk 0:01:48]}  Bb6 {[%clk 0:01:29]} 21. Kh1 {[%clk 0:01:44]}  h5 {[%clk 0:01:19]} 22. d5 {[%clk 0:01:42]}  Ng4 {[%clk 0:01:15]} 23. c5 {[%clk 0:01:31]}  Nge3 {[%clk 0:00:51]} 24. cxb6 {[%clk 0:01:07]}  Rxd5 {[%clk 0:00:44]} 25. Qe4 {[%clk 0:00:56]}  Rb5 {[%clk 0:00:43]} 26. Qa4 {[%clk 0:00:33]}  Qc2 {[%clk 0:00:25]} 27. Rg1 {[%clk 0:00:15]}  Rxb3 {[%clk 0:00:24]} 28. Qxa7 {[%clk 0:00:13]}  Rf8 {[%clk 0:00:18]} 29. Ba3 {[%clk 0:00:12]}  Ng4 {[%clk 0:00:10]} 30. Raf1 {[%clk 0:00:07]}  Qa2 {[%clk 0:00:04]} 31. Nc4 {[%clk 0:00:02]}  h4 {[%clk 0:00:01]} 32. Qxb7 {[%clk 0:00:02]} 1-0


[Site "https://www.chess.com"]

[Event "Titled Tuesday Blitz March 07 Late 2023"]
[White "Fernandez Guillen, Ernesto J."]
[Black "Kretchetov, Alexandre"]
[WhiteFideId "3512428"]
[BlackFideId "4124588"]
[WhiteElo "2423"]
[BlackElo "2542"]
[Result "1-0"]
[Round "06"]
[TimeControl "180+2"]
[Date "2023.03.07"]
[WhiteClock "0:01:49"]
[BlackClock "0:00:57"]

1. e4 {[%clk 0:02:59]}  c6 {[%clk 0:02:59]} 2. d4 {[%clk 0:02:59]}  d5 {[%clk 0:03:00]} 3. e5 {[%clk 0:03:00]}  Bf5 {[%clk 0:02:58]} 4. c3 {[%clk 0:03:00]}  e6 {[%clk 0:02:58]} 5. Bd3 {[%clk 0:03:00]}  Bxd3 {[%clk 0:02:58]} 6. Qxd3 {[%clk 0:03:01]}  Qb6 {[%clk 0:02:54]} 7. Ne2 {[%clk 0:03:02]}  c5 {[%clk 0:02:54]} 8. O-O {[%clk 0:03:02]}  Nc6 {[%clk 0:02:54]} 9. Nd2 {[%clk 0:03:01]}  cxd4 {[%clk 0:02:49]} 10. cxd4 {[%clk 0:03:02]}  Nge7 {[%clk 0:02:49]} 11. Nf3 {[%clk 0:03:01]}  Nf5 {[%clk 0:02:44]} 12. g4 {[%clk 0:03:01]}  Nfe7 {[%clk 0:02:44]} 13. a3 {[%clk 0:02:58]}  h5 {[%clk 0:02:43]} 14. h3 {[%clk 0:02:59]}  Rc8 {[%clk 0:02:41]} 15. b4 {[%clk 0:02:58]}  a5 {[%clk 0:02:40]} 16. b5 {[%clk 0:02:59]}  Na7 {[%clk 0:02:40]} 17. a4 {[%clk 0:02:59]}  Ng6 {[%clk 0:02:38]} 18. Kg2 {[%clk 0:02:58]}  Be7 {[%clk 0:02:29]} 19. Be3 {[%clk 0:02:55]}  Rc4 {[%clk 0:02:24]} 20. Rfc1 {[%clk 0:02:52]}  Rxc1 {[%clk 0:02:15]} 21. Rxc1 {[%clk 0:02:53]}  Kd7 {[%clk 0:02:12]} 22. Bd2 {[%clk 0:02:42]}  hxg4 {[%clk 0:02:11]} 23. hxg4 {[%clk 0:02:42]}  Rc8 {[%clk 0:02:03]} 24. Rxc8 {[%clk 0:02:41]}  Nxc8 {[%clk 0:02:03]} 25. Qc3 {[%clk 0:02:29]}  Bb4 {[%clk 0:02:01]} 26. Qc1 {[%clk 0:02:29]}  Bxd2 {[%clk 0:01:58]} 27. Qxd2 {[%clk 0:02:30]}  Qd8 {[%clk 0:01:56]} 28. Ng5 {[%clk 0:02:29]}  Ke8 {[%clk 0:01:53]} 29. f4 {[%clk 0:02:29]}  Nb6 {[%clk 0:01:48]} 30. Kg3 {[%clk 0:02:24]}  Nc4 {[%clk 0:01:47]} 31. Qd3 {[%clk 0:02:22]}  Qe7 {[%clk 0:01:37]} 32. Ng1 {[%clk 0:02:21]}  Qb4 {[%clk 0:01:30]} 33. N1f3 {[%clk 0:02:17]}  Qxa4 {[%clk 0:01:24]} 34. Nxe6 {[%clk 0:02:17]}  Ne7 {[%clk 0:01:15]} 35. Nxg7+ {[%clk 0:02:17]}  Kd8 {[%clk 0:01:14]} 36. Nf5 {[%clk 0:02:16]}  Qa1 {[%clk 0:01:12]} 37. Nxe7 {[%clk 0:02:14]}  Kxe7 {[%clk 0:01:13]} 38. Qf5 {[%clk 0:02:14]}  Qc3 {[%clk 0:01:09]} 39. Qf6+ {[%clk 0:02:05]}  Ke8 {[%clk 0:01:07]} 40. e6 {[%clk 0:02:05]}  fxe6 {[%clk 0:01:07]} 41. Qxe6+ {[%clk 0:02:06]}  Kf8 {[%clk 0:01:07]} 42. Qc8+ {[%clk 0:01:53]}  Kg7 {[%clk 0:01:06]} 43. g5 {[%clk 0:01:52]}  Qd3 {[%clk 0:01:03]} 44. Qxb7+ {[%clk 0:01:50]}  Kg8 {[%clk 0:00:58]} 45. Qxd5+ {[%clk 0:01:50]}  Kf8 {[%clk 0:00:58]} 46. Qd8+ {[%clk 0:01:50]}  Kg7 {[%clk 0:00:58]} 47. Qf6+ {[%clk 0:01:49]}  Kg8 {[%clk 0:00:57]} 48. g6 {[%clk 0:01:49]} 1-0


[Site "https://www.chess.com"]

[Event "Titled Tuesday Blitz March 07 Late 2023"]
[White "Reprintsev, Alexander"]
[Black "Bilych, Olexiy"]
[WhiteFideId "14100541"]
[BlackFideId "14156504"]
[WhiteElo "2229"]
[BlackElo "2320"]
[Result "0-1"]
[Round "06"]
[TimeControl "180+2"]
[Date "2023.03.07"]
[WhiteClock "0:00:04"]
[BlackClock "0:00:15"]

1. e4 {[%clk 0:02:53]}  c5 {[%clk 0:03:00]} 2. b3 {[%clk 0:02:52]}  g6 {[%clk 0:02:58]} 3. Bb2 {[%clk 0:02:52]}  Nf6 {[%clk 0:02:58]} 4. g4 {[%clk 0:02:52]}  h6 {[%clk 0:02:54]} 5. e5 {[%clk 0:02:47]}  Nd5 {[%clk 0:02:52]} 6. Bg2 {[%clk 0:02:46]}  Nc7 {[%clk 0:02:49]} 7. e6 {[%clk 0:02:42]}  f6 {[%clk 0:02:47]} 8. exd7+ {[%clk 0:02:42]}  Qxd7 {[%clk 0:02:45]} 9. h3 {[%clk 0:02:42]}  Nc6 {[%clk 0:02:41]} 10. Ne2 {[%clk 0:02:33]}  Bg7 {[%clk 0:02:35]} 11. d4 {[%clk 0:02:30]}  cxd4 {[%clk 0:02:35]} 12. Nxd4 {[%clk 0:02:30]}  Nxd4 {[%clk 0:02:35]} 13. Qxd4 {[%clk 0:02:29]}  Qxd4 {[%clk 0:02:34]} 14. Bxd4 {[%clk 0:02:29]}  e5 {[%clk 0:02:33]} 15. Bc5 {[%clk 0:02:26]}  Ne6 {[%clk 0:02:32]} 16. Ba3 {[%clk 0:02:24]}  Nf4 {[%clk 0:02:31]} 17. Bf3 {[%clk 0:02:19]}  Bf8 {[%clk 0:02:29]} 18. Bxf8 {[%clk 0:02:14]}  Kxf8 {[%clk 0:02:29]} 19. Nc3 {[%clk 0:02:14]}  Rb8 {[%clk 0:01:57]} 20. O-O-O {[%clk 0:02:13]}  Be6 {[%clk 0:01:54]} 21. Nb5 {[%clk 0:01:59]}  Ke7 {[%clk 0:01:49]} 22. c4 {[%clk 0:01:36]}  a6 {[%clk 0:01:41]} 23. Nc3 {[%clk 0:01:33]}  b5 {[%clk 0:01:34]} 24. cxb5 {[%clk 0:01:27]}  axb5 {[%clk 0:01:34]} 25. Kb2 {[%clk 0:01:27]}  b4 {[%clk 0:01:32]} 26. Ne4 {[%clk 0:01:05]}  Rhc8 {[%clk 0:01:28]} 27. Rd2 {[%clk 0:00:59]}  f5 {[%clk 0:01:08]} 28. gxf5 {[%clk 0:00:59]}  gxf5 {[%clk 0:01:09]} 29. Ng3 {[%clk 0:00:53]}  e4 {[%clk 0:00:55]} 30. Be2 {[%clk 0:00:52]}  Rc3 {[%clk 0:00:54]} 31. h4 {[%clk 0:00:45]}  Rbc8 {[%clk 0:00:52]} 32. Rhd1 {[%clk 0:00:44]}  Kf6 {[%clk 0:00:49]} 33. Ba6 {[%clk 0:00:36]}  R8c7 {[%clk 0:00:45]} 34. Ne2 {[%clk 0:00:35]}  Ke5 {[%clk 0:00:38]} 35. Nd4 {[%clk 0:00:20]}  Bd7 {[%clk 0:00:21]} 36. Nc2 {[%clk 0:00:16]}  Be6 {[%clk 0:00:13]} 37. Nxb4 {[%clk 0:00:16]}  Rh3 {[%clk 0:00:13]} 38. Bb5 {[%clk 0:00:11]}  Rxh4 {[%clk 0:00:12]} 39. Nc6+ {[%clk 0:00:11]}  Kf6 {[%clk 0:00:13]} 40. a4 {[%clk 0:00:11]}  Nd3+ {[%clk 0:00:12]} 41. Bxd3 {[%clk 0:00:10]}  Rxc6 {[%clk 0:00:12]} 42. Bb5 {[%clk 0:00:10]}  Rc5 {[%clk 0:00:13]} 43. Rd6 {[%clk 0:00:10]}  Ke5 {[%clk 0:00:13]} 44. R1d2 {[%clk 0:00:10]}  Rh3 {[%clk 0:00:13]} 45. Rb6 {[%clk 0:00:10]}  Rxb3+ {[%clk 0:00:13]} 46. Ka2 {[%clk 0:00:04]}  Rbxb5+ {[%clk 0:00:12]} 47. Rxe6+ {[%clk 0:00:04]}  Kxe6 {[%clk 0:00:12]} 48. axb5 {[%clk 0:00:04]}  Rxb5 {[%clk 0:00:13]} 49. Rd8 {[%clk 0:00:04]}  Ke5 {[%clk 0:00:13]} 50. Rh8 {[%clk 0:00:04]}  Rb6 {[%clk 0:00:13]} 51. Rg8 {[%clk 0:00:03]}  Kf4 {[%clk 0:00:14]} 52. Rg3 {[%clk 0:00:04]}  h5 {[%clk 0:00:14]} 53. Rh3 {[%clk 0:00:03]}  Rd6 {[%clk 0:00:13]} 54. Kb3 {[%clk 0:00:03]}  Rd2 {[%clk 0:00:13]} 55. Rh4+ {[%clk 0:00:02]}  Kg5 {[%clk 0:00:13]} 56. Rh2 {[%clk 0:00:02]}  e3 {[%clk 0:00:13]} 57. Rg2+ {[%clk 0:00:03]}  Kf6 {[%clk 0:00:13]} 58. Rg1 {[%clk 0:00:01]}  Rxf2 {[%clk 0:00:13]} 59. Re1 {[%clk 0:00:01]}  f4 {[%clk 0:00:14]} 60. Kc4 {[%clk 0:00:01]}  h4 {[%clk 0:00:15]} 61. Kd4 {[%clk 0:00:02]}  h3 {[%clk 0:00:15]} 62. Ke4 {[%clk 0:00:03]}  h2 {[%clk 0:00:15]} 63. Rh1 {[%clk 0:00:03]}  Kg5 {[%clk 0:00:15]} 64. Rb1 {[%clk 0:00:04]}  Kg4 {[%clk 0:00:15]} 0-1


[Site "https://www.chess.com"]

[Event "Titled Tuesday Blitz March 07 Late 2023"]
[White "Do Nascimento,Christian Almeida"]
[Black "Nasuta, Grzegorz"]
[WhiteFideId "2143801"]
[BlackFideId "1141686"]
[WhiteElo "2125"]
[BlackElo "2449"]
[Result "1-0"]
[Round "06"]
[TimeControl "180+2"]
[Date "2023.03.07"]
[WhiteClock "0:01:10"]
[BlackClock "0:00:45"]

1. e4 {[%clk 0:02:58]}  c6 {[%clk 0:03:00]} 2. d4 {[%clk 0:02:58]}  d5 {[%clk 0:03:00]} 3. Nc3 {[%clk 0:02:58]}  dxe4 {[%clk 0:03:00]} 4. Nxe4 {[%clk 0:02:59]}  Nf6 {[%clk 0:02:59]} 5. Ng5 {[%clk 0:02:59]}  h6 {[%clk 0:02:57]} 6. N5f3 {[%clk 0:02:55]}  Bf5 {[%clk 0:02:57]} 7. Bc4 {[%clk 0:02:53]}  e6 {[%clk 0:02:57]} 8. Ne5 {[%clk 0:02:52]}  Nbd7 {[%clk 0:02:57]} 9. Ngf3 {[%clk 0:02:52]}  Be7 {[%clk 0:02:56]} 10. O-O {[%clk 0:02:50]}  O-O {[%clk 0:02:56]} 11. c3 {[%clk 0:02:49]}  a5 {[%clk 0:02:55]} 12. a4 {[%clk 0:02:47]}  Nb6 {[%clk 0:02:53]} 13. Bb3 {[%clk 0:02:45]}  Nbd5 {[%clk 0:02:53]} 14. Re1 {[%clk 0:02:44]}  Re8 {[%clk 0:02:52]} 15. h3 {[%clk 0:02:43]}  Bd6 {[%clk 0:02:52]} 16. g4 {[%clk 0:02:39]}  Bh7 {[%clk 0:02:51]} 17. g5 {[%clk 0:02:40]}  hxg5 {[%clk 0:02:32]} 18. Nxg5 {[%clk 0:02:31]}  Bxe5 {[%clk 0:02:30]} 19. dxe5 {[%clk 0:02:31]}  Nd7 {[%clk 0:02:30]} 20. Nxh7 {[%clk 0:02:24]}  Kxh7 {[%clk 0:02:31]} 21. Qh5+ {[%clk 0:02:23]}  Kg8 {[%clk 0:02:31]} 22. Re4 {[%clk 0:01:55]}  Nf8 {[%clk 0:01:58]} 23. Bg5 {[%clk 0:01:39]}  Qb6 {[%clk 0:01:56]} 24. Rh4 {[%clk 0:01:27]}  f5 {[%clk 0:01:39]} 25. exf6 {[%clk 0:01:23]}  gxf6 {[%clk 0:01:27]} 26. Bxd5 {[%clk 0:01:16]}  exd5 {[%clk 0:00:45]} 27. Qh8+ {[%clk 0:01:09]}  Kf7 {[%clk 0:00:45]} 28. Qxf6+ {[%clk 0:01:10]} 1-0


[Site "https://www.chess.com"]

[Event "Titled Tuesday Blitz March 07 Late 2023"]
[White "Wieczorek, Oskar"]
[Black "Kokoszczynski, Jan"]
[WhiteFideId "1133950"]
[BlackFideId "1174460"]
[WhiteElo "2418"]
[BlackElo "2139"]
[Result "0-1"]
[Round "06"]
[TimeControl "180+2"]
[Date "2023.03.07"]
[WhiteClock "0:02:08"]
[BlackClock "0:01:45"]

1. e4 {[%clk 0:02:53]}  e5 {[%clk 0:02:59]} 2. Nf3 {[%clk 0:02:53]}  Nc6 {[%clk 0:02:59]} 3. Nc3 {[%clk 0:02:53]}  Nf6 {[%clk 0:03:00]} 4. h3 {[%clk 0:02:52]}  a6 {[%clk 0:02:57]} 5. d4 {[%clk 0:02:46]}  exd4 {[%clk 0:02:47]} 6. Nxd4 {[%clk 0:02:47]}  Nxd4 {[%clk 0:02:09]} 7. Qxd4 {[%clk 0:02:42]}  d6 {[%clk 0:02:08]} 8. Bc4 {[%clk 0:02:36]}  Be7 {[%clk 0:02:05]} 9. Bg5 {[%clk 0:02:36]}  O-O {[%clk 0:02:02]} 10. O-O-O {[%clk 0:02:33]}  b5 {[%clk 0:01:57]} 11. Bb3 {[%clk 0:02:25]}  c5 {[%clk 0:01:48]} 12. Qd2 {[%clk 0:02:08]}  c4 {[%clk 0:01:45]} 0-1


[Site "https://www.chess.com"]